bitfinex-derivatives/quotes_ETHF0:USTF0_20241102
["timestamp","ask_amount","ask_price","bid_price","bid_amount"]
[1730527303273,4.80713064,2514.1,2514.0,2.46837426]
[1730527303568,5.08565064,2514.1,2514.0,2.46837426]
[1730527303870,4.80713064,2514.1,2514.0,2.46837426]
[1730527305269,1.59933064,2514.1,2514.0,2.46837426]
[1730527305766,5.08565064,2514.1,2514.0,2.46837426]
[1730527307177,5.08565064,2514.1,2514.0,2.46841136]
[1730527307471,8.21509768,2514.1,2514.0,2.46841136]
[1730527307672,5.08565064,2514.1,2514.0,2.46841136]
[1730527308374,1.87785064,2514.1,2514.0,2.46841136]
[1730527308676,5.08565064,2514.1,2514.0,2.46841136]
[1730527309475,8.21509768,2514.1,2514.0,2.46841136]
[1730527310073,8.21509768,2514.1,2514.0,1.89605602]
[1730527310267,8.21509768,2514.1,2514.0,2.46840335]
[1730527310469,7.93657768,2514.1,2514.0,2.46840335]
[1730527311470,8.21509768,2514.1,2514.0,2.46840335]
[1730527311667,8.21509768,2514.1,2514.0,3.71262063]
[1730527312271,8.21509768,2514.1,2514.0,2.46840335]
[1730527312768,8.21509768,2514.1,2514.0,3.71263929]
[1730527312973,5.00729768,2514.1,2514.0,3.71263929]
[1730527313279,8.21509768,2514.1,2514.0,2.46840335]
[1730527315067,8.21509768,2514.1,2514.0,0.27853]
[1730527315272,8.21509768,2514.1,2514.0,2.46838026]
[1730527317080,8.21509768,2514.1,2514.0,3.71260879]
[1730527318074,5.00729768,2514.1,2514.0,3.71260879]
[1730527318683,8.21509768,2514.1,2514.0,3.71260728]
[1730527319188,8.21509768,2514.1,2514.0,2.46838412]
[1730527319388,8.21509768,2514.1,2514.0,3.71261529]
[1730527319583,8.21509768,2514.1,2514.0,1.14949058]
[1730527319883,8.21509768,2514.1,2514.0,2.46837375]
[1730527321175,7.93657768,2514.1,2514.0,2.46837375]
[1730527321381,8.21509768,2514.1,2514.0,2.46837375]
[1730527321883,8.21509768,2514.1,2514.0,2.46835988]
[1730527321884,7.93657768,2514.1,2514.0,2.46835988]
[1730527322189,7.93657768,2514.1,2514.0,3.71258099]
[1730527322584,4.72877768,2514.1,2514.0,3.71258099]
[1730527323090,7.93657768,2514.1,2514.0,3.71258099]
[1730527323786,4.72877768,2514.1,2514.0,2.46835988]
[1730527324087,8.21509768,2514.1,2514.0,2.46835988]
[1730527325381,8.21509768,2514.1,2514.0,3.71257908]
[1730527325587,8.21509768,2514.1,2514.0,2.46835988]
[1730527325992,8.21509768,2514.1,2514.0,3.71257094]
[1730527326391,7.93657768,2514.1,2514.0,3.71257094]
[1730527328094,8.21509768,2514.1,2514.0,3.71257094]
[1730527328590,4.80713064,2514.1,2514.0,3.71257094]
[1730527328796,7.93910634,2514.1,2514.0,3.71257094]
[1730527329390,4.80713064,2514.1,2514.0,3.71257094]
[1730527329792,4.35553064,2514.1,2514.0,3.71257094]
[1730527330001,4.35553064,2514.1,2514.0,3.71255597]
[1730527330290,1.14773064,2514.1,2514.0,3.71255597]
[1730527330493,8.00829281,2514.1,2514.0,3.71255597]
[1730527330693,8.28681281,2514.1,2514.0,3.71255597]
[1730527331391,8.00829281,2514.1,2514.0,3.71255597]
[1730527332398,8.28681281,2514.1,2514.0,3.77884237]
[1730527332598,8.00829281,2514.1,2514.0,3.77884237]
[1730527332805,8.28681281,2514.1,2514.0,3.77884237]
[1730527333095,8.00829281,2514.1,2514.0,3.77884237]
[1730527334397,8.28681281,2514.1,2514.0,3.77883993]
[1730527336396,8.28681281,2514.1,2514.0,0.27853]
[1730527336703,8.28681281,2514.1,2514.0,3.77891301]
[1730527337796,8.28681281,2514.1,2514.0,0.27853]
[1730527338000,8.28681281,2514.1,2514.0,1.72183421]
[1730527338202,8.00829281,2514.1,2514.0,2.36049635]
[1730527338501,8.28681281,2514.1,2514.0,3.97799244]
[1730527338895,5.07901281,2514.1,2514.0,3.97799244]
[1730527339402,8.28681281,2514.1,2514.0,3.97799244]
[1730527339904,8.00829281,2514.1,2514.0,3.97799244]
[1730527340601,8.28681281,2514.1,2514.0,3.97799244]
[1730527341705,8.28681281,2514.1,2514.0,1.11626858]
[1730527342008,8.28681281,2514.1,2514.0,3.97800261]
[1730527343102,5.07901281,2514.1,2514.0,3.97800261]
[1730527343304,8.28681281,2514.1,2514.0,3.97800261]
[1730527343808,5.07901281,2514.1,2514.0,3.97800261]
[1730527344011,8.28681281,2514.1,2514.0,3.97800261]
[1730527344809,5.07901281,2514.1,2514.0,3.97800261]
[1730527345404,8.28681281,2514.1,2514.0,3.97800261]
[1730527345807,8.28681281,2514.1,2514.0,1.84626567]
[1730527346010,8.28681281,2514.1,2514.0,4.10244602]
[1730527346311,8.28681281,2514.1,2514.0,4.10244783]
[1730527346904,8.28681281,2514.1,2514.0,3.77894783]
[1730527347104,5.07901281,2514.1,2514.0,3.77894783]
[1730527347506,8.28681281,2514.1,2514.0,3.77894783]
[1730527347912,8.28681281,2514.1,2514.0,3.71262043]
[1730527348409,8.28681281,2514.1,2514.0,3.43409043]
[1730527348808,8.28681281,2514.1,2514.0,2.18985476]
[1730527349106,8.28681281,2514.1,2514.0,3.4341578]
[1730527349499,8.28681281,2514.1,2513.9,0.27854]
[1730527349714,1.56943064,2514.0,2513.9,0.27854]
[1730527349902,1.56943064,2514.0,2513.9,3.71275436]
[1730527350315,1.56943064,2514.0,2513.9,3.77908346]
[1730527350707,1.84796064,2514.0,2513.9,3.77908346]
[1730527352017,2.28646064,2514.0,2513.9,3.71275436]
[1730527352213,2.28646064,2514.0,2513.9,3.77908346]
[1730527352614,2.28646064,2514.0,2513.9,3.71275436]
[1730527353110,2.28646064,2514.0,2513.9,3.77908346]
[1730527353419,2.28646064,2514.0,2513.9,0.27854]
[1730527353608,2.28646064,2514.0,2513.9,2.66758054]
[1730527353808,2.28646064,2514.0,2513.9,4.28516219]
[1730527356821,5.49426064,2514.0,2513.9,3.71279026]
[1730527357415,5.49426064,2514.0,2513.9,0.27854]
[1730527357712,5.49426064,2514.0,2513.9,3.71276838]
[1730527359115,2.28646064,2514.0,2513.9,3.71276838]
[1730527359314,9.14702281,2514.0,2513.9,3.71276838]
[1730527359509,5.49426064,2514.0,2513.9,3.77909613]
[1730527359715,9.14702281,2514.0,2513.9,3.71276838]
[1730527361122,9.14702281,2514.0,2513.9,0.27854]
[1730527361319,5.93922281,2514.0,2513.9,3.71276817]
[1730527361523,9.14702281,2514.0,2513.9,3.71276817]
[1730527362326,5.93922281,2514.0,2513.9,3.71276817]
[1730527362720,9.14702281,2514.0,2513.9,3.71276817]
[1730527363725,9.14702281,2514.0,2513.9,3.43422817]
[1730527365129,9.14702281,2514.0,2513.9,3.71276817]
[1730527369531,9.14702281,2514.0,2513.9,3.43422817]
[1730527371425,5.93922281,2514.0,2513.9,3.43422817]
[1730527371728,9.14702281,2514.0,2513.9,3.43422817]
[1730527372129,9.14702281,2514.0,2513.9,0.57237383]
[1730527372427,9.14702281,2514.0,2513.9,3.43424308]
[1730527373830,9.58422281,2514.0,2513.9,3.43424308]
[1730527375625,5.93146064,2514.0,2513.9,3.43424308]
[1730527375826,9.58738676,2514.0,2513.9,3.43424308]
[1730527376229,5.93146064,2514.0,2513.9,2.1899521]
[1730527378933,2.72366064,2514.0,2513.9,2.1899521]
[1730527379135,2.44513064,2514.0,2513.9,1.99098889]
[1730527379437,5.93146064,2514.0,2513.9,3.4344236]
[1730527379634,5.93146064,2514.0,2513.9,1.24433582]
[1730527379830,10.08288405,2514.0,2513.9,2.81223498]
[1730527380035,5.93146064,2514.0,2513.9,3.43441719]
[1730527381841,5.93146064,2514.0,2513.9,3.43441229]
[1730527382439,2.72366064,2514.0,2513.9,3.43441229]
[1730527382839,5.93146064,2514.0,2513.9,3.43441229]
[1730527383344,2.72366064,2514.0,2513.9,3.43441229]
[1730527383642,5.93146064,2514.0,2513.9,3.43441229]
[1730527384043,9.58683412,2514.0,2513.9,3.43441229]
[1730527384541,9.58683412,2514.0,2513.9,3.71295229]
[1730527384849,9.58683412,2514.0,2513.9,4.95727177]
[1730527384850,8.87110412,2514.0,2513.9,4.95727177]
[1730527385142,5.21573064,2514.0,2513.9,4.95727177]
[1730527385339,5.21573064,2514.0,2513.9,2.38227582]
[1730527385642,8.34861852,2514.0,2513.9,5.81642413]
[1730527385836,8.87110412,2514.0,2513.9,5.81642413]
[1730527386143,5.21573064,2514.0,2513.9,5.81642413]
[1730527386444,4.35553064,2514.0,2513.9,5.81642413]
[1730527386643,7.48860321,2514.0,2513.9,5.81642413]
[1730527387033,7.48860321,2514.0,2513.9,4.57208831]
[1730527387838,4.28089655,2514.0,2513.9,4.63840497]
[1730527388044,1.14773064,2514.0,2513.9,4.57208831]
[1730527388546,4.35553064,2514.0,2513.9,4.57208831]
[1730527388943,4.63406064,2514.0,2513.9,3.85154831]
[1730527389344,8.28943412,2514.0,2513.9,3.85154831]
[1730527390749,5.08163412,2514.0,2513.9,3.85154831]
[1730527390950,8.28943412,2514.0,2513.9,3.85154831]
[1730527391549,8.28943412,2514.0,2513.9,4.13008831]
[1730527392256,8.28943412,2514.0,2513.9,0.69594]
[1730527392451,8.28943412,2514.0,2513.9,3.68224446]
[1730527392656,8.28943412,2514.0,2513.9,3.55781511]
[1730527392950,8.28943412,2514.0,2513.9,5.12559868]
[1730527393845,8.01090412,2514.0,2513.9,4.84705868]
[1730527394046,8.01090412,2514.0,2513.9,5.12559868]
[1730527394348,4.35553064,2514.0,2513.9,5.12559868]
[1730527394552,4.63406064,2514.0,2513.9,5.12559868]
[1730527394753,8.29010266,2514.0,2513.9,4.84705868]
[1730527394951,8.29010266,2514.0,2513.9,5.12559868]
[1730527395355,4.35553064,2514.0,2513.9,5.12559868]
[1730527395554,8.01157266,2514.0,2513.9,5.12559868]
[1730527396059,8.01157266,2514.0,2513.9,5.12561481]
[1730527396753,8.01157266,2514.0,2513.9,4.55324417]
[1730527396959,8.01149242,2514.0,2513.9,4.55324417]
[1730527397659,8.01149242,2514.0,2513.9,4.80210024]
[1730527397855,8.01149242,2514.0,2513.9,2.26374378]
[1730527398060,8.01149242,2514.0,2513.9,2.88589675]
[1730527398259,8.01149242,2514.0,2513.9,4.55327848]
[1730527398659,8.29002242,2514.0,2513.9,4.55327848]
[1730527399667,8.29002242,2514.0,2513.9,4.17998745]
[1730527400063,8.01149242,2514.0,2513.9,4.17998745]
[1730527400264,4.35553064,2514.0,2513.9,4.17998745]
[1730527400467,7.48922375,2514.0,2513.9,4.17998745]
[1730527401167,7.48922375,2514.0,2513.9,4.30441842]
[1730527401568,7.48922375,2514.0,2513.9,5.19961842]
[1730527401767,7.48922375,2514.0,2513.9,3.15895728]
[1730527401965,7.48922375,2514.0,2513.9,2.78566437]
[1730527402364,7.48922375,2514.0,2513.9,1.59114]
[1730527404773,7.48922375,2514.0,2513.9,4.45288898]
[1730527407080,7.48922375,2514.0,2513.9,4.45291826]
[1730527408466,7.48922375,2514.0,2513.9,2.83539142]
[1730527408678,7.48922375,2514.0,2513.9,4.4528983]
[1730527408977,7.48922375,2514.0,2513.9,5.0915416]
[1730527409974,4.35553064,2514.0,2513.9,5.0915416]
[1730527410178,7.48922375,2514.0,2513.9,5.0915416]
[1730527410382,4.35553064,2514.0,2513.9,5.0915416]
[1730527410874,7.48922375,2514.0,2513.9,5.09153834]
[1730527412683,7.76775375,2514.0,2513.9,5.09151353]
[1730527412885,7.48922375,2514.0,2513.9,5.09151353]
[1730527413284,7.48922375,2514.0,2513.9,5.09147071]
[1730527413681,4.35553064,2514.0,2513.9,5.09147071]
[1730527414584,1.14773064,2514.0,2513.9,5.09147071]
[1730527414783,1.14773064,2514.0,2513.9,1.59114]
[1730527414986,4.28142375,2514.0,2513.9,5.09144527]
[1730527415185,1.14773064,2514.0,2513.9,5.09144527]
[1730527417588,1.14773064,2514.0,2513.9,4.19624527]
[1730527418391,1.14773064,2514.0,2513.9,0.69594]
[1730527418589,4.28142375,2514.0,2513.9,4.19626995]
[1730527418784,4.28142375,2514.0,2513.9,4.13001048]
[1730527418984,4.70832375,2514.0,2513.9,4.19626995]
[1730527419185,1.57463064,2514.0,2513.9,4.19626995]
[1730527421586,1.57463064,2514.0,2513.9,4.19627181]
[1730527421996,5.21563064,2514.0,2513.9,0.69594]
[1730527422295,5.21563064,2514.0,2513.9,4.13002131]
[1730527422493,5.14152375,2514.0,2513.9,1.334548]
[1730527422794,8.34932375,2514.0,2513.9,4.19628243]
[1730527422990,5.21563064,2514.0,2513.9,4.19628243]
[1730527423291,2.00783064,2514.0,2513.9,4.19628243]
[1730527423484,5.14152375,2514.0,2513.9,4.19628243]
[1730527423680,5.14152375,2514.0,2513.9,4.19628653]
[1730527423993,2.00783064,2514.0,2513.9,4.19628653]
[1730527424192,8.34932375,2514.0,2513.9,4.19628653]
[1730527424395,5.21563064,2514.0,2513.9,4.19628653]
[1730527424593,2.00783064,2514.0,2513.9,4.19628653]
[1730527424789,2.00783064,2514.0,2513.9,4.1962649]
[1730527424989,5.14152375,2514.0,2513.9,4.1962649]
[1730527425884,5.14152375,2514.0,2513.9,0.69594]
[1730527426085,5.14152375,2514.0,2513.9,4.19627238]
[1730527426284,2.00783064,2514.0,2513.9,4.19627238]
[1730527426586,5.14152375,2514.0,2513.9,4.19627238]
[1730527429391,5.14152375,2514.0,2513.9,0.69594]
[1730527429698,5.14152375,2514.0,2513.9,4.1962864]
[1730527431892,2.00783064,2514.0,2513.9,4.74836032]
[1730527432489,5.14152375,2514.0,2513.9,4.81463376]
[1730527432696,5.14152375,2514.0,2513.9,4.19627449]
[1730527433396,5.14152375,2514.0,2513.9,0.69594]
[1730527433698,5.14152375,2514.0,2513.9,4.19621142]
[1730527434103,5.14152375,2514.0,2513.9,4.74831419]
[1730527434699,1.57463064,2514.0,2513.9,4.74831419]
[1730527435602,1.57463064,2514.0,2513.9,4.74831886]
[1730527436700,1.57463064,2514.0,2513.9,4.17600139]
[1730527436890,4.70832375,2514.0,2513.9,4.74832773]
[1730527437092,1.57463064,2514.0,2513.9,4.74832773]
[1730527437696,4.70832375,2514.0,2513.9,4.74832773]
[1730527440004,1.57463064,2514.0,2513.9,4.74832773]
[1730527440397,1.57463064,2514.0,2513.9,0.69594]
[1730527440594,1.57463064,2514.0,2513.9,3.50435434]
[1730527440900,1.57463064,2514.0,2513.9,4.74857479]
[1730527442802,1.57463064,2514.0,2513.9,0.69594]
[1730527443107,1.57463064,2514.0,2513.9,4.74863691]
[1730527443397,1.57463064,2514.0,2513.9,6.61494492]
[1730527443603,1.57463064,2514.0,2513.9,4.7486237]
[1730527444104,1.57463064,2514.0,2513.9,4.81492476]
[1730527444604,1.85316064,2514.0,2513.9,4.81492476]
[1730527444802,1.57463064,2514.0,2513.9,4.81492476]
[1730527445004,1.57463064,2514.0,2513.9,4.11898476]
[1730527445199,6.97849128,2514.0,2513.9,3.43401375]
[1730527445403,6.69996128,2514.0,2513.5,1.72376891]
[1730527445607,4.35553064,2513.6,2513.5,1.38370318]
[1730527445907,4.35553064,2513.6,2513.5,2.87698998]
[1730527446210,5.68753064,2513.6,2513.5,2.87698998]
[1730527446392,5.68753064,2513.6,2513.5,1.83819208]
[1730527446599,5.96611064,2513.6,2513.5,1.83819208]
[1730527446803,5.96611064,2513.6,2513.5,1.7718668]
[1730527447103,5.68753064,2513.6,2513.5,1.7718668]
[1730527448611,2.47973064,2513.6,2513.5,0.52746113]
[1730527448999,5.68753064,2513.6,2513.5,0.52746113]
[1730527450103,5.68753064,2513.6,2513.5,0.52746796]
[1730527451409,2.47973064,2513.6,2513.5,0.52746796]
[1730527451612,5.68753064,2513.6,2513.5,0.52746796]
[1730527451811,5.68753064,2513.6,2513.5,0.24888796]
[1730527452015,5.96611064,2513.6,2513.5,0.24888796]
[1730527452310,0.27859,2513.5,2513.4,0.2786]
[1730527452510,0.27859,2513.5,2513.4,0.52749123]
[1730527453208,5.96611064,2513.6,2513.4,0.52749123]
[1730527453410,5.96611064,2513.6,2513.4,0.2786]
[1730527454412,5.68753064,2513.6,2513.4,0.2786]
[1730527454613,0.27859,2513.5,2513.4,0.2786]
[1730527454808,0.27859,2513.5,2513.4,0.52749408]
[1730527455214,0.27859,2513.5,2513.4,0.24889408]
[1730527455410,0.27859,2513.5,2513.4,0.19912219]
[1730527455715,0.27859,2513.5,2513.4,1.19472681]
[1730527456015,0.27859,2513.5,2513.4,0.47772219]
[1730527456210,5.96612064,2513.6,2513.4,0.47772219]
[1730527456411,5.96612064,2513.6,2513.4,0.2786]
[1730527456605,8.82067216,2513.6,2513.4,0.2786]
[1730527456912,0.27859,2513.5,2513.2,0.4211]
[1730527457217,1.14773064,2513.3,2513.2,0.69972]
[1730527457418,1.14773064,2513.3,2513.2,1.14775118]
[1730527457615,1.14773064,2513.3,2513.2,2.89009839]
[1730527460419,1.14773064,2513.3,2513.2,2.89009951]
[1730527460919,1.14773064,2513.3,2513.2,1.14775058]
[1730527461216,1.14773064,2513.3,2513.2,2.64118588]
[1730527463307,1.14773064,2513.3,2513.2,0.69972]
[1730527463514,1.14773064,2513.3,2513.2,2.64118204]
[1730527464607,1.14773064,2513.3,2513.2,2.64117931]
[1730527464813,1.14773064,2513.3,2513.2,0.69972]
[1730527465016,1.14773064,2513.3,2513.2,2.64119756]
[1730527465208,1.14773064,2513.3,2513.2,2.89010229]
[1730527467423,1.14773064,2513.3,2513.2,2.64119756]
[1730527467926,1.14773064,2513.3,2513.2,2.89010195]
[1730527468513,1.14773064,2513.3,2513.2,2.64119756]
[1730527468929,1.14773064,2513.3,2513.2,2.70349756]
[1730527471622,1.14773064,2513.3,2513.2,1.70785584]
[1730527471824,1.14773064,2513.3,2513.2,2.70347253]
[1730527472413,1.14773064,2513.3,2513.2,1.70785584]
[1730527472621,1.14773064,2513.3,2513.2,2.70348152]
[1730527475424,1.14773064,2513.3,2513.2,0.76202]
[1730527475620,1.14773064,2513.3,2513.2,2.70348671]
[1730527478618,1.14773064,2513.3,2513.2,0.76202]
[1730527478824,1.14773064,2513.3,2513.2,2.70351104]
[1730527479823,1.14773064,2513.3,2513.2,2.95241566]
[1730527480025,1.42634064,2513.3,2513.2,2.95241201]
[1730527480223,1.42634064,2513.3,2513.2,2.70351104]
[1730527480425,1.14773064,2513.3,2513.2,2.70351104]
[1730527480923,2.04213064,2513.3,2513.2,2.70351104]
[1730527481924,2.32074064,2513.3,2513.2,2.70351104]
[1730527482123,2.32074064,2513.3,2513.2,1.75765644]
[1730527482322,2.32074064,2513.3,2513.2,2.82798331]
[1730527482629,2.04213064,2513.3,2513.2,2.70353635]
[1730527482929,2.04213064,2513.3,2513.2,2.95244676]
[1730527483827,5.24993064,2513.3,2513.2,2.95244676]
[1730527484131,5.52854064,2513.3,2513.2,2.00381635]
[1730527485935,5.52854064,2513.3,2513.2,2.0038949]
[1730527486326,5.52854064,2513.3,2513.2,0.0623]
[1730527486524,5.52854064,2513.3,2513.2,2.12837548]
[1730527486725,5.52854064,2513.3,2513.2,1.1326765]
[1730527487631,5.52854064,2513.3,2513.2,2.12838256]
[1730527488833,5.52854064,2513.3,2513.2,2.65592846]
[1730527489032,5.52854064,2513.3,2513.2,2.40700256]
[1730527489335,5.52854064,2513.3,2513.2,2.37730756]
[1730527489336,8.66168216,2513.3,2513.2,2.37730756]
[1730527489631,8.66168216,2513.3,2513.2,1.80476974]
[1730527489933,8.66168216,2513.3,2513.2,2.37729541]
[1730527490132,8.66168216,2513.3,2513.2,2.65591541]
[1730527491539,8.66168216,2513.3,2513.2,2.37729541]
[1730527492030,5.45388216,2513.3,2513.2,2.37729541]
[1730527492338,8.66168216,2513.3,2513.2,2.37729541]
[1730527492925,8.66128819,2513.3,2513.2,2.37729541]
[1730527493129,5.52854064,2513.3,2513.2,2.37729541]
[1730527493329,8.66123225,2513.3,2513.2,1.05803793]
[1730527493542,8.66125223,2513.3,2513.2,2.37739806]
[1730527493730,8.66125223,2513.3,2513.2,2.25293569]
[1730527494439,5.45345223,2513.3,2513.2,2.25293569]
[1730527494637,8.66125223,2513.3,2513.2,2.25293569]
[1730527495738,5.45345223,2513.3,2513.2,2.25293569]
[1730527496043,8.66125223,2513.3,2513.2,2.25293569]
[1730527497243,8.66125223,2513.3,2513.2,2.25293177]
[1730527497853,5.52854064,2513.3,2513.2,2.25294419]
[1730527498441,8.66127021,2513.3,2513.2,2.25294419]
[1730527498640,8.66124688,2513.3,2513.2,2.25294419]
[1730527498842,5.45344688,2513.3,2513.2,2.25294419]
[1730527499145,8.66124688,2513.3,2513.2,2.25294419]
[1730527500336,5.52854064,2513.3,2513.2,2.25294419]
[1730527500533,8.66145748,2513.3,2513.2,2.25294419]
[1730527500742,8.66145748,2513.3,2513.2,2.53156419]
[1730527501045,8.66145748,2513.3,2513.2,2.25294419]
[1730527501443,5.52854064,2513.3,2513.2,2.25294419]
[1730527501639,8.66154381,2513.3,2513.2,2.25294419]
[1730527502041,5.45374381,2513.3,2513.2,2.25294419]
[1730527502438,8.66154381,2513.3,2513.2,2.25294419]
[1730527503445,9.50774064,2513.3,2513.2,2.25294419]
[1730527503640,13.16307242,2513.3,2513.2,2.25294419]
[1730527503842,13.16307242,2513.3,2513.2,2.00400735]
[1730527504139,13.65916405,2513.3,2513.2,1.00825999]
[1730527504345,9.50774064,2513.3,2513.2,1.00825999]
[1730527504546,13.65916405,2513.3,2513.2,1.00825999]
[1730527504744,13.65916405,2513.3,2513.2,1.00827529]
[1730527505049,8.90474455,2513.3,2513.2,2.28263468]
[1730527505248,5.24993064,2513.3,2513.2,2.53156112]
[1730527505452,8.38236169,2513.3,2513.2,2.53156112]
[1730527507146,5.17456169,2513.3,2513.2,2.53156112]
[1730527507345,5.17456169,2513.3,2513.2,0.34092]
[1730527507650,5.17456169,2513.3,2513.2,2.53144071]
[1730527508846,5.17456169,2513.3,2513.2,3.77604664]
[1730527508847,4.28016169,2513.3,2513.2,3.77604664]
[1730527509047,4.28016169,2513.3,2513.2,3.7760433]
[1730527510454,4.28016169,2513.3,2513.2,0.91344245]
[1730527510653,4.28016169,2513.3,2513.2,3.20350554]
[1730527510855,4.28016169,2513.3,2513.2,2.53142019]
[1730527511153,4.28016169,2513.3,2513.2,3.77602856]
[1730527511547,1.14773064,2513.3,2513.2,3.77602856]
[1730527512051,1.14773064,2513.3,2513.2,3.84234505]
[1730527514149,1.14773064,2513.3,2513.2,3.84214697]
[1730527516856,1.14773064,2513.3,2513.2,3.77583048]
[1730527517652,1.14773064,2513.3,2513.2,2.78021538]
[1730527517859,1.14773064,2513.3,2513.2,2.78023153]
[1730527518155,1.14773064,2513.3,2513.2,3.52696504]
[1730527518459,1.14773064,2513.3,2513.2,3.77587481]
[1730527523453,1.14773064,2513.3,2513.2,3.77588396]
[1730527524148,1.14773064,2513.3,2513.2,4.21028396]
[1730527524353,1.14773064,2513.3,2513.2,0.77532]
[1730527525856,1.14773064,2513.3,2513.2,4.21028601]
[1730527526856,1.14773064,2513.3,2513.2,0.77532]
[1730527527062,1.14773064,2513.3,2513.2,4.21027994]
[1730527527563,1.14773064,2513.3,2513.2,4.2766101]
[1730527527958,1.14773064,2513.3,2513.2,4.21027994]
[1730527528162,1.14773064,2513.3,2513.2,4.2766101]
[1730527528657,1.14773064,2513.3,2513.2,4.21027994]
[1730527528965,1.14773064,2513.3,2513.2,4.2766101]
[1730527529254,1.14773064,2513.3,2513.2,4.21027994]
[1730527529461,1.14773064,2513.3,2513.2,4.2766101]
[1730527529966,1.14773064,2513.3,2513.2,4.21027994]
[1730527530359,1.14773064,2513.3,2513.2,0.77532]
[1730527530556,1.14773064,2513.3,2513.2,4.21024565]
[1730527530769,1.14773064,2513.3,2513.2,0.77532]
[1730527530955,1.14773064,2513.3,2513.2,4.27658634]
[1730527531263,1.14773064,2513.3,2513.2,4.21025471]
[1730527531654,1.14773064,2513.3,2513.2,4.27658547]
[1730527532256,1.14773064,2513.3,2513.2,4.21025471]
[1730527533558,1.14773064,2513.3,2513.2,4.27658547]
[1730527534167,1.14773064,2513.3,2513.2,0.77532]
[1730527534371,1.14773064,2513.3,2513.2,4.21031905]
[1730527534761,1.14773064,2513.3,2513.2,4.27665077]
[1730527535268,1.14773064,2513.3,2513.2,4.21031905]
[1730527536067,1.14773064,2513.3,2513.2,4.21031351]
[1730527537773,1.14773064,2513.3,2513.2,0.34092]
[1730527537971,1.60493064,2513.3,2513.2,3.77593296]
[1730527538863,1.60493064,2513.3,2513.2,3.49731296]
[1730527539064,1.88354064,2513.3,2513.2,3.77593296]
[1730527539363,1.88354064,2513.3,2513.2,3.49731296]
[1730527539868,1.60493064,2513.3,2513.2,3.49731296]
[1730527540067,1.60493064,2513.3,2513.2,3.77593296]
[1730527541073,4.81273064,2513.3,2513.2,3.77593296]
[1730527541365,4.81273064,2513.3,2513.2,3.40263051]
[1730527541669,4.81273064,2513.3,2513.2,0.34092]
[1730527541870,4.81273064,2513.3,2513.2,3.77603437]
[1730527542261,5.09134064,2513.3,2513.2,0.91343905]
[1730527542459,5.09134064,2513.3,2513.2,3.77601818]
[1730527542662,5.09134064,2513.3,2513.2,3.49739818]
[1730527542864,5.09134064,2513.3,2513.2,3.77601818]
[1730527543468,9.07054064,2513.3,2513.2,1.55929856]
[1730527543676,9.07054064,2513.3,2512.6,1.03973407]
[1730527543677,8.79193064,2513.3,2512.8,0.06633846]
[1730527543870,1.14773064,2512.9,2512.8,0.34499846]
[1730527544063,1.14773064,2512.9,2512.8,1.52342482]
[1730527544260,1.56573064,2512.9,2512.8,1.52342482]
[1730527545073,1.84439064,2512.9,2512.8,1.24476482]
[1730527545267,4.69945781,2512.9,2512.6,0.06638383]
[1730527545465,4.35553064,2512.7,2512.5,0.34507383]
[1730527545667,0.27869,2512.6,2512.5,0.34507383]
[1730527545970,0.27869,2512.6,2512.5,1.52356882]
[1730527546577,0.27869,2512.6,2512.5,0.27869]
[1730527547075,1.16469,2512.6,2512.5,0.27869]
[1730527547271,1.16469,2512.6,2512.4,0.7018]
[1730527547472,1.59333064,2512.5,2512.4,0.7018]
[1730527547775,1.59333064,2512.5,2512.4,1.94669035]
[1730527547966,1.59333064,2512.5,2512.4,1.52359035]
[1730527548467,1.59333064,2512.5,2512.4,0.2787]
[1730527551471,1.59333064,2512.5,2512.4,0.52769205]
[1730527552171,1.59333064,2512.5,2512.4,0.2787]
[1730527553680,1.59333064,2512.5,2512.4,0.47789275]
[1730527554173,1.87203064,2512.5,2512.4,0.47789275]
[1730527554474,1.87203064,2512.5,2512.3,0.27872]
[1730527554475,0.27871,2512.4,2512.3,0.27872]
[1730527554667,1.42644064,2512.4,2512.3,0.27872]
[1730527555776,1.14773064,2512.4,2512.3,0.40322578]
[1730527557780,1.42644064,2512.4,2512.3,0.40322578]
[1730527558378,1.42644064,2512.4,2512.3,0.27872]
[1730527559176,1.14773064,2512.4,2512.3,0.27872]
[1730527560778,4.35553064,2512.4,2512.3,0.27872]
[1730527561179,1.14773064,2512.4,2512.3,0.27872]
[1730527561477,1.14773064,2512.4,2511.5,4.52278989]
[1730527561478,9.48326128,2512.4,2511.5,4.52278989]
[1730527561677,0.4456,2512.5,2511.7,2.25466234]
[1730527561678,0.27876,2512.0,2511.7,2.25466234]
[1730527561882,3.2078,2512.1,2511.7,2.25466234]
[1730527561883,3.2078,2512.1,2511.9,0.27877]
[1730527562086,1.59903064,2512.0,2511.9,0.27877]
[1730527562276,1.87778064,2512.0,2511.8,0.27877]
[1730527562477,1.14773064,2511.9,2511.8,0.27877]
[1730527562689,1.14773064,2511.9,2511.8,0.40329575]
[1730527563383,1.14773064,2511.9,2511.8,0.27877]
[1730527568483,4.35553064,2511.9,2511.8,0.27877]
[1730527568685,8.33633064,2511.9,2511.4,0.27881]
[1730527568878,2.57427128,2511.5,2511.4,0.73251]
[1730527569278,2.29546128,2511.5,2511.4,0.73251]
[1730527569879,2.57427128,2511.5,2511.4,0.73251]
[1730527570079,2.29546128,2511.5,2511.4,1.19411]
[1730527570682,2.57427128,2511.5,2511.4,1.19411]
[1730527571186,2.29546128,2511.5,2511.4,1.19411]
[1730527571788,1.14773064,2511.5,2511.4,1.19411]
[1730527575589,1.42654064,2511.5,2511.4,1.19411]
[1730527575790,1.14773064,2511.5,2511.4,1.19411]
[1730527577291,1.42654064,2511.5,2511.4,0.9153]
[1730527578393,1.14773064,2511.5,2511.4,1.19412]
[1730527579984,1.42654064,2511.5,2511.4,1.19412]
[1730527581994,4.63434064,2511.5,2511.4,1.19412]
[1730527582191,4.35553064,2511.5,2511.4,1.19412]
[1730527582802,1.14773064,2511.5,2511.4,1.19412]
[1730527583303,4.35553064,2511.5,2511.4,1.19412]
[1730527583502,4.63434064,2511.5,2511.4,1.19412]
[1730527584103,1.42654064,2511.5,2511.4,1.19412]
[1730527584399,4.63434064,2511.5,2511.4,0.9153]
[1730527584899,4.63434064,2511.5,2511.4,1.19412]
[1730527585099,4.63434064,2511.5,2511.4,0.74042]
[1730527585498,4.63434064,2511.5,2511.4,0.4616]
[1730527585697,4.63434064,2511.5,2511.4,0.74042]
[1730527588802,1.42654064,2511.5,2511.4,0.74042]
[1730527589198,4.63434064,2511.5,2511.4,0.74042]
[1730527590205,4.63434064,2511.5,2511.4,0.4616]
[1730527590610,4.35553064,2511.5,2511.4,0.74042]
[1730527590999,4.63434064,2511.5,2511.4,0.74042]
[1730527593505,4.63434064,2511.5,2511.1,0.427]
[1730527593506,5.50326128,2511.5,2511.1,0.427]
[1730527593706,0.27884,2511.3,2511.2,0.54295076]
[1730527594005,0.27884,2511.3,2511.2,0.82179252]
[1730527594204,0.27884,2511.3,2511.2,0.54295252]